bitfinex/quotes_SOLUSD_20260119
["timestamp","ask_amount","ask_price","bid_price","bid_amount"]
[1768864547531,0.70385562,133.17,133.13,8.51341068]
[1768864547828,8.22404783,133.18,133.14,1.0020408]
[1768864548144,13.68759168,133.18,133.14,1.0020408]
[1768864549229,0.71530314,133.18,133.14,1.0020408]
[1768864549429,13.68753006,133.18,133.14,1.0020408]
[1768864549631,0.71751436,133.17,133.14,1.0020408]
[1768864550549,13.6919271,133.18,133.14,1.0020408]
[1768864553527,8.22838325,133.18,133.14,1.0020408]
[1768864554145,112.73535075,133.2,133.15,1.02986721]
[1768864554638,118.1988946,133.2,133.15,1.02986721]
[1768864554962,125.7067355,133.2,133.15,1.02986721]
[1768864555248,109.2467355,133.2,133.15,1.02986721]
[1768864555650,95.54509234,133.2,133.16,1.02986721]
[1768864556739,103.05274831,133.2,133.16,1.02986721]
[1768864556933,108.51629216,133.2,133.16,1.02986721]
[1768864557132,7.50765597,133.2,133.16,1.02986721]
[1768864557333,12.97119982,133.2,133.16,1.02986721]
[1768864558131,5.46354385,133.2,133.16,1.02986721]
[1768864559354,0.74022405,133.2,133.16,1.02986721]
[1768864559756,6.2037679,133.2,133.16,1.02986721]
[1768864560250,0.74022405,133.2,133.16,1.02986721]
[1768864560956,6.20759575,133.18,133.14,8.54049741]
[1768864561837,0.7440519,133.18,133.14,8.54049741]
[1768864562038,6.20759575,133.18,133.14,1.02986721]
[1768864562238,6.20759575,133.18,133.1,99.06461495]
[1768864562239,6.20947676,133.16,133.11,1.02986721]
[1768864562944,6.20947676,133.16,133.12,8.54159475]
[1768864563140,6.20947676,133.16,133.13,1.02986721]
[1768864563753,0.74593291,133.16,133.12,1.02986721]
[1768864563961,6.20947676,133.16,133.12,1.02986721]
[1768864565559,0.74593291,133.16,133.12,8.54188467]
[1768864566061,0.74593291,133.16,133.12,8.54178702]
[1768864566857,0.74593291,133.16,133.12,1.02986721]
[1768864567165,6.20947676,133.16,133.12,1.02986721]
[1768864567461,5.46354385,133.17,133.13,1.02986721]
[1768864568056,6.2203177,133.17,133.13,1.02986721]
[1768864570363,6.2203177,133.17,133.14,1.02986721]
[1768864572057,0.76359476,133.14,133.07,6.98638041]
[1768864572259,0.76359476,133.1,133.06,1.02986721]
[1768864572462,6.22713861,133.09,133.05,8.64547815]
[1768864572650,5.46354385,133.08,133.05,1.12986721]
[1768864573466,5.46354385,133.07,133.05,0.1]
[1768864574765,6.22879515,133.08,133.05,0.1]
[1768864576271,5.46354385,133.08,133.05,1.12986721]
[1768864577164,6.23365149,133.09,133.05,1.12986721]
[1768864577542,5.46354385,133.08,133.05,1.12986721]
[1768864578971,8.2850413,133.1,133.05,1.12986721]
[1768864579671,5.46354385,133.09,133.05,1.12986721]
[1768864581062,12.97727047,133.09,133.05,1.12986721]
[1768864581372,5.46354385,133.08,133.05,1.12986721]
[1768864582148,0.77783671,133.09,133.05,7.6159384]
[1768864582472,7.51339316,133.1,133.05,7.6159384]
[1768864582473,5.46354385,133.06,133.05,0.1]
[1768864582660,5.46354385,133.07,133.05,0.1]
[1768864582861,5.46980825,133.07,133.05,0.1]
[1768864583058,0.77932967,133.08,133.05,0.1]
[1768864583258,5.46980825,133.07,133.05,0.1]
[1768864584876,8.2936954,133.08,133.05,0.1]
[1768864585075,5.46980825,133.07,133.05,0.1]
[1768864585277,13.76350365,133.08,133.05,0.1]
[1768864586776,0.77932967,133.08,133.05,0.1]
[1768864587173,35.24287002,133.1,133.05,1.17259656]
[1768864587174,24.76131838,133.1,133.05,1.17259656]
[1768864587366,5.46980825,133.09,133.05,1.17259656]
[1768864587673,6.25774239,133.09,133.05,1.17259656]
[1768864588581,0.68931112,133.05,133.02,0.1]
[1768864588958,18.78485772,133.09,133.02,1.17259656]
[1768864588959,0.69067228,133.06,133.02,1.17259656]
[1768864589163,5.46980825,133.05,133.02,1.17259656]
[1768864589478,18.78569281,133.08,133.02,1.17259656]
[1768864589479,5.46980825,133.03,133.02,0.1]
[1768864589681,0.69067228,133.04,133.02,0.1]
[1768864589874,6.16048053,133.04,133.02,0.1]
[1768864590561,5.46980825,133.03,133.01,0.1]
[1768864590766,13.57960676,133.02,132.98,1.17259656]
[1768864591388,8.10979851,133.02,132.98,1.17259656]
[1768864591565,5.46980825,133.0,132.98,0.1]
[1768864592774,5.46980825,132.99,132.98,0.1]
[1768864592956,5.46980825,132.99,132.97,0.1]
[1768864593162,6.06705541,132.98,132.96,0.1]
[1768864593362,5.96705541,132.97,132.93,1.12775586]
[1768864593571,5.46980825,132.96,132.93,1.12775586]
[1768864593987,5.40980824,132.96,132.93,1.12775586]
[1768864594187,8.02043356,132.99,132.93,1.12775586]
[1768864594391,24.47985784,133.01,132.94,1.02775586]
[1768864594688,0.50107121,133.0,132.95,1.02775586]
[1768864594988,0.50485134,133.05,132.98,1.02775586]
[1768864595167,5.46980825,133.03,132.98,1.02775586]
[1768864595363,5.46980825,133.03,132.99,1.02775586]
[1768864595569,5.46980825,133.04,133.0,1.02775586]
[1768864596063,0.50485134,133.05,133.0,1.02775586]
[1768864596279,5.46980825,133.04,133.0,1.02775586]
[1768864596459,5.46980825,133.05,133.01,1.02775586]
[1768864597283,8.02729812,133.05,133.01,1.02775586]
[1768864597477,5.46980825,133.04,133.01,1.02775586]
[1768864597791,5.46980825,133.04,133.0,1.02775586]
[1768864598670,8.02729812,133.05,133.0,7.51878916]
[1768864598863,5.46980825,133.04,133.0,8.54654502]
[1768864599392,8.02729812,133.05,133.0,8.54654502]
[1768864599582,5.46980825,133.04,133.0,8.54654502]
[1768864600183,5.98111644,133.05,133.01,1.02775586]
[1768864600577,0.51130819,133.05,133.01,1.02775586]
[1768864600886,16.46,133.06,133.01,1.02775586]
[1768864601234,16.46,133.06,133.03,1.02775586]
[1768864602080,16.46,133.06,133.02,14.02521118]
[1768864602669,0.52170943,133.05,132.97,16.46]
[1768864602869,5.46980825,133.01,132.97,8.55789003]
[1768864603070,0.52170943,133.02,132.97,8.55789003]
[1768864603269,5.46980825,133.01,132.97,1.0377877]
[1768864603587,5.46980825,132.99,132.95,8.55921985]
[1768864603769,5.46980825,132.99,132.95,1.0377877]
[1768864604286,8.04208364,133.0,132.96,1.0377877]
[1768864604287,5.46980825,133.0,132.96,1.0377877]
[1768864604893,12.57117978,133.0,132.96,1.0377877]
[1768864605193,12.57117978,132.98,132.95,1.0377877]
[1768864605494,0.52585021,132.95,132.91,0.1]
[1768864606075,13.09702999,132.95,132.91,0.1]
[1768864606286,0.52585021,132.95,132.91,0.1]
[1768864606482,0.42719888,132.94,132.91,0.1]
[1768864606681,12.57117978,132.92,132.87,1.0377877]
[1768864606990,12.89971184,132.91,132.86,7.52663337]
[1768864607176,0.32853206,132.91,132.87,7.52602994]
[1768864607371,12.57117978,132.91,132.88,1.0377877]
[1768864607579,0.32853206,132.91,132.86,1.0377877]
[1768864607875,12.57117978,132.9,132.86,1.0377877]
[1768864608187,7.52479395,132.9,132.85,1.0377877]
[1768864608377,16.46,132.91,132.87,1.0377877]
[1768864608574,16.46,132.91,132.88,1.0377877]
[1768864608775,7.52313214,132.93,132.88,1.0377877]
[1768864608976,24.0022536,132.94,132.89,1.0377877]
[1768864609177,16.48,132.94,132.9,1.0377877]
[1768864609397,12.57117978,132.93,132.9,1.0377877]
[1768864609599,29.05117978,132.94,132.9,1.0377877]
[1768864610095,12.57117978,132.95,132.91,1.0377877]
[1768864610311,36.57184036,132.97,132.91,1.0377877]
[1768864610480,12.57117978,132.96,132.92,1.0377877]
[1768864610673,16.48,132.97,132.93,1.0377877]
[1768864610875,16.48,132.99,132.94,1.0377877]
[1768864611171,23.99973394,132.99,132.94,1.0377877]
[1768864611483,12.57117978,132.98,132.94,1.0377877]
[1768864611793,16.48,132.99,132.96,1.0377877]
[1768864611976,29.05117978,132.99,132.96,1.0377877]
[1768864612178,16.48,132.99,132.96,1.0377877]
[1768864612473,0.33266506,132.96,132.9,1.0377877]
[1768864612674,12.57117978,132.95,132.9,8.56214417]
[1768864612883,12.57117978,132.95,132.91,1.08507445]
[1768864613186,12.57117978,132.96,132.92,1.08507445]
[1768864613773,0.33153157,132.98,132.92,1.08507445]
[1768864613991,12.57117978,132.96,132.92,1.08507445]
[1768864614294,7.51998122,132.98,132.93,1.08507445]
[1768864614481,16.48,132.99,132.94,1.08507445]
[1768864614685,16.48,132.99,132.92,26.33157186]
[1768864614896,16.48,132.99,132.95,12.57117978]
[1768864615280,29.05117978,132.99,132.94,12.57117978]
[1768864615894,16.48,132.99,132.95,12.57117978]
[1768864616280,12.57117978,133.0,132.95,12.57117978]
[1768864616489,23.99779828,133.02,132.96,12.57117978]
[1768864616684,29.05117978,133.02,132.98,1.08507445]
[1768864616998,29.05117978,133.02,132.95,26.32540504]
[1768864616999,12.57117978,133.01,132.96,1.08507445]
[1768864617201,12.57117978,133.01,132.97,1.08507445]
[1768864617976,24.35703861,133.02,132.97,1.08507445]
[1768864618181,12.57117978,133.01,132.97,1.08507445]
[1768864618597,24.35703861,133.02,132.97,1.08507445]
[1768864618902,12.57117978,133.01,132.98,1.08507445]
[1768864620084,0.35816745,133.0,132.94,1.08507445]
[1768864620291,12.57117978,132.97,132.94,1.08507445]
[1768864620487,12.57117978,132.96,132.92,1.08507445]
[1768864620803,12.57117978,132.95,132.91,1.08507445]
[1768864621008,0.35816745,132.96,132.91,1.08507445]
[1768864621180,12.57117978,132.94,132.91,1.08507445]
[1768864621384,0.35805216,132.98,132.92,1.08507445]
[1768864621787,0.35805216,132.98,132.93,1.08507445]
[1768864622096,12.57117978,132.97,132.93,1.08507445]
[1768864622678,12.57117978,132.97,132.93,8.60774292]
[1768864623094,7.52018073,132.98,132.94,1.08507445]
[1768864623282,0.35782554,132.99,132.91,1.08507445]
[1768864623492,12.57117978,132.96,132.92,1.08507445]
[1768864624205,12.57117978,132.96,132.92,8.6083297]
[1768864624505,7.52060061,132.97,132.92,8.6083297]
[1768864624796,12.57117978,132.96,132.92,8.6083297]
[1768864625006,12.57117978,132.96,132.92,1.08507445]
[1768864625496,12.57117978,132.95,132.92,1.08507445]
[1768864625697,7.52060061,132.97,132.92,1.08507445]
[1768864625904,12.57117978,132.95,132.92,1.08507445]
[1768864626100,7.52060061,132.97,132.93,1.08507445]
[1768864626301,20.09178039,132.97,132.93,1.08507445]
[1768864626506,7.52013274,132.98,132.93,1.08507445]
[1768864626688,20.09131252,132.98,132.93,1.08507445]
[1768864626890,20.09131252,132.98,132.94,1.08507445]
[1768864627095,12.57117978,132.97,132.94,1.08507445]
[1768864627411,12.57117978,132.97,132.93,1.08507445]
[1768864627595,7.52013274,132.98,132.94,1.08507445]
[1768864627799,20.09131252,132.98,132.94,1.08507445]
[1768864627990,12.57117978,133.0,132.95,1.08507445]
[1768864628318,12.57117978,132.99,132.95,1.08507445]
[1768864629209,7.51880155,133.0,132.95,1.08507445]
[1768864629594,12.57117978,132.99,132.95,1.08507445]
[1768864629789,7.51880155,133.0,132.95,1.08507445]
[1768864629989,12.57117978,132.99,132.95,1.08507445]
[1768864631011,20.09058667,132.99,132.95,1.08507445]
[1768864631410,12.57117978,132.99,132.95,1.08507445]
[1768864632113,7.51895066,133.0,132.95,1.08507445]
[1768864632300,20.09013044,133.0,132.95,1.08507445]
[1768864633014,95.90186009,133.03,132.97,1.08507445]
[1768864633194,95.90186009,133.03,132.98,1.08507445]
[1768864633388,12.92794753,132.99,132.94,1.08507445]
[1768864633615,95.54509234,133.01,132.97,12.57117978]
[1768864633915,108.11627212,133.01,132.97,1.08507445]
[1768864634515,115.63486505,133.01,132.97,1.08507445]
[1768864634814,12.57117978,133.03,132.99,1.08507445]
[1768864635016,0.35666853,133.04,132.99,1.08507445]
[1768864635197,12.57117978,133.03,132.99,1.08507445]
[1768864635609,12.57117978,133.01,132.97,1.08507445]
[1768864636118,12.57117978,133.02,132.98,1.08507445]
[1768864636295,103.41834901,133.04,132.99,1.08507445]
[1768864636490,95.54509234,133.04,133.0,1.08507445]
[1768864636695,95.54509234,133.04,133.01,1.08507445]
[1768864638602,108.11627212,133.04,133.01,1.08507445]
[1768864639120,95.54509234,133.04,133.01,1.08507445]
[1768864640522,95.54509234,133.04,133.02,1.08507445]
[1768864640722,7.87104297,133.07,133.02,8.60272076]
[1768864641029,12.92718501,133.06,133.0,25.06365821]
[1768864641202,12.92718501,133.06,132.98,1.08507445]
[1768864641203,12.57117978,133.02,132.98,1.08507445]
[1768864641620,12.92718501,133.01,132.96,8.6055968]
[1768864641803,12.57117978,133.01,132.97,1.08507445]
[1768864642221,12.57117978,133.0,132.97,1.08507445]
[1768864642722,12.57117978,132.99,132.95,8.60647815]
[1768864642918,0.35573697,133.02,132.97,1.09323545]
[1768864643130,12.57117978,133.01,132.97,1.09323545]
[1768864643424,12.57117978,133.01,132.97,8.61372212]
[1768864643923,12.57117978,133.01,132.97,1.09323545]
[1768864644135,7.87350906,133.02,132.97,1.09323545]
[1768864644136,12.57117978,133.0,132.97,1.09323545]
[1768864644628,0.3556496,132.99,132.93,1.09323545]
[1768864644810,12.92682938,132.99,132.94,8.6153895]
[1768864644999,12.57280593,132.98,132.94,8.6153895]
[1768864645630,12.57280593,132.98,132.94,1.09323545]
[1768864646534,20.09277818,132.98,132.94,1.09323545]
[1768864646735,12.57280593,132.96,132.92,8.61605663]
[1768864647344,12.57280593,132.96,132.92,1.09323545]
[1768864647641,0.35547785,132.97,132.92,8.61641273]
[1768864647817,0.35547785,132.97,132.93,1.09323545]
[1768864648006,12.92828378,132.97,132.93,8.61596037]
[1768864648528,12.57280593,132.97,132.93,8.61596037]
[1768864648739,12.57280593,132.97,132.93,1.09323545]
[1768864648932,12.57280593,132.96,132.93,1.09323545]
[1768864649149,7.87528228,132.98,132.93,1.09323545]
[1768864649438,12.57280593,132.96,132.93,1.09323545]
[1768864650336,12.57280593,132.97,132.94,1.09323545]
[1768864652636,103.06462025,132.99,132.95,1.09323545]
[1768864652819,12.57280593,132.98,132.95,1.09323545]
[1768864653028,5.47655482,132.98,132.95,1.09323545]
[1768864653534,5.47655482,132.96,132.95,1.09323545]
[1768864653766,103.4195273,132.99,132.95,1.09323545]
[1768864653767,5.47655482,132.97,132.95,1.09323545]
[1768864654635,5.47655482,132.97,132.95,1.06323546]
[1768864655407,5.86130707,132.99,132.94,7.52197571]
[1768864655609,5.47655482,132.97,132.94,7.52197571]
[1768864655831,5.47655482,132.98,132.94,7.52197571]
[1768864656523,5.47655482,132.98,132.95,1.09323545]
[1768864656912,5.47655482,132.96,132.93,1.09323545]
[1768864657113,0.384601,132.97,132.93,1.09323545]
[1768864657328,0.384601,132.98,132.93,1.09323545]
[1768864657634,5.47655482,132.97,132.93,1.09323545]
[1768864658528,12.99764932,132.96,132.92,1.09323545]
[1768864659158,7.9052672,132.97,132.93,1.09323545]
[1768864659448,5.47655482,132.96,132.93,1.09323545]
[1768864659844,7.9052672,132.97,132.93,1.09323545]
[1768864660335,13.38182202,132.97,132.93,1.09323545]
[1768864660962,5.47655482,132.96,132.93,1.09323545]
[1768864661121,5.47655482,132.95,132.91,1.09323545]
[1768864661436,0.88418811,132.96,132.91,1.09323545]
[1768864661621,5.47655482,132.95,132.91,1.09323545]
[1768864661824,5.47655482,132.95,132.92,1.10873442]
[1768864662238,6.36074293,132.96,132.92,1.10873442]
[1768864662645,0.5,132.96,132.92,7.52322892]
[1768864662848,0.5,132.96,132.93,1.10873442]
[1768864663048,5.47655482,132.95,132.91,1.10873442]
[1768864663247,5.47655482,132.95,132.92,1.10873442]
[1768864663455,13.49784494,132.96,132.92,1.10873442]
[1768864663761,5.97655482,132.96,132.92,1.10873442]
[1768864664119,7.90457538,132.97,132.92,1.10873442]
[1768864664325,5.47655482,132.96,132.93,1.10873442]
[1768864665648,5.47655482,132.97,132.93,1.10873442]
[1768864665861,5.47655482,132.97,132.93,8.63124614]
[1768864666149,7.90373711,132.98,132.94,1.10873442]
[1768864666361,5.47655482,133.0,132.94,5.47655482]
[1768864666652,5.47655482,133.0,132.95,7.52162467]
[1768864666849,7.93131099,133.02,132.95,12.99817949]
[1768864667049,5.47655482,133.01,132.95,12.99817949]
[1768864668246,5.47655482,133.01,132.97,1.10873442]
[1768864668773,5.47655482,133.0,132.97,1.10873442]
[1768864668935,0.41306818,133.0,132.96,1.10873442]
[1768864669140,5.47655482,132.99,132.96,1.10873442]
[1768864669342,7.51788236,133.02,132.97,1.10873442]
[1768864669554,5.47655482,133.02,132.98,1.10873442]
[1768864669731,7.51677754,133.04,132.98,1.10873442]
[1768864669936,7.92926868,133.05,132.99,1.10873442]
[1768864670133,5.47655482,133.04,133.0,1.10873442]
[1768864670464,16.48,133.09,133.01,1.10873442]
[1768864670628,0.41295078,133.08,133.02,1.10873442]
[1768864671043,5.47655482,133.07,133.03,1.10873442]
[1768864671459,0.41283473,133.09,133.03,1.10873442]
[1768864671640,5.47655482,133.07,133.03,1.10873442]
[1768864672531,0.41283473,133.08,133.04,1.10873442]
[1768864672734,5.47655482,133.07,133.04,1.10873442]
[1768864672934,5.47655482,133.07,133.03,1.0961197]
[1768864673366,5.89155632,133.05,133.01,1.0961197]
[1768864673541,5.47655482,133.04,133.0,8.61474726]
[1768864673737,0.4150015,133.08,133.03,1.0961197]
[1768864674042,5.47655482,133.05,133.01,1.0961197]
[1768864674448,5.47655482,133.05,133.01,8.61432465]
[1768864674650,12.99164788,133.07,133.02,1.0961197]
[1768864674944,5.47655482,133.06,133.02,1.0961197]
[1768864675539,5.89295967,133.05,133.01,7.51820495]
[1768864675860,5.47655482,133.05,133.01,8.61432465]
[1768864676730,0.41640485,133.06,133.02,1.0961197]
[1768864676935,5.47655482,133.06,133.02,1.0961197]
[1768864677441,7.93208487,133.08,133.03,1.0961197]
[1768864677635,5.47655482,133.06,133.03,1.0961197]
[1768864677853,5.4165548,133.06,133.03,1.0961197]
[1768864678637,5.47655482,133.06,133.03,1.0961197]
[1768864680053,5.47655482,133.06,133.01,7.51801431]
[1768864680054,5.47655482,133.04,132.99,1.0961197]
[1768864680260,5.47655482,133.05,133.01,1.0961197]
[1768864680447,103.05996921,133.07,133.02,1.0961197]
[1768864680635,103.06001172,133.07,133.03,1.0961197]
[1768864680838,6.09632941,133.11,133.06,1.0961197]
[1768864681041,6.09632941,133.11,133.07,1.0961197]
[1768864681242,5.47655482,133.09,133.04,1.0961197]
[1768864681850,5.47655482,133.06,133.02,1.0961197]
[1768864682049,5.47655482,133.09,133.04,6.57267452]
[1768864682250,21.95655482,133.1,133.05,1.0961197]
[1768864682453,5.47655482,133.09,133.05,1.0961197]
[1768864682654,5.47655482,133.08,133.05,1.0961197]
[1768864682963,5.47655482,133.07,133.03,1.0961197]
[1768864683548,5.47655482,133.08,133.04,1.0961197]
[1768864683780,5.47655482,133.09,133.05,1.0961197]
[1768864684263,12.98991945,133.1,133.05,1.0961197]
[1768864684448,5.47655482,133.1,133.06,1.0961197]
[1768864684645,5.47655482,133.09,133.06,1.0961197]
[1768864685244,5.47655482,133.1,133.06,1.0961197]
[1768864686562,0.2,133.11,133.07,1.0961197]
[1768864686942,5.67655482,133.11,133.07,1.0961197]
[1768864687660,0.2,133.11,133.08,1.0961197]
[1768864687959,0.2,133.11,133.07,7.51446658]
[1768864687960,5.67655482,133.11,133.07,1.0961197]
[1768864688163,5.47655482,133.1,133.07,1.0961197]
[1768864688349,5.67655482,133.11,133.07,1.0961197]
[1768864688545,5.47655482,133.1,133.07,1.0961197]
[1768864688741,5.47655482,133.09,133.05,1.0961197]
[1768864689068,5.47655482,133.09,133.05,8.61198094]
[1768864689261,5.47655482,133.09,133.06,1.0961197]
[1768864689964,5.47655482,133.1,133.06,1.0961197]
[1768864690668,7.7128397,133.11,133.06,1.0961197]
[1768864690867,5.47655482,133.1,133.06,1.0961197]
[1768864691446,7.7128397,133.11,133.06,1.0961197]
[1768864691651,5.47655482,133.1,133.06,1.0961197]
[1768864691852,0.2,133.11,133.07,1.0961197]
[1768864692049,5.67655482,133.11,133.07,1.0961197]
[1768864692259,0.2,133.11,133.07,1.0961197]
[1768864692748,0.2,133.11,133.08,1.0961197]
[1768864693655,0.2,133.11,133.09,1.0961197]
[1768864698051,13.18919094,133.11,133.09,1.0961197]
[1768864698252,5.67655482,133.11,133.09,1.0961197]
[1768864698454,8.1432577,133.11,133.06,1.0961197]
[1768864698657,5.47655482,133.1,133.06,1.0961197]
[1768864700469,8.1432577,133.11,133.06,8.61141976]
[1768864700660,5.47655482,133.1,133.07,1.0961197]
[1768864701953,0.63041415,133.11,133.07,1.0961197]
[1768864702153,6.10696897,133.11,133.07,1.0961197]
[1768864704364,13.61960996,133.11,133.07,1.0961197]
[1768864704880,13.60941776,133.11,133.07,1.0961197]
[1768864705885,5.46636262,133.1,133.07,1.0961197]
[1768864706387,5.9013222,133.08,133.03,8.64368516]
[1768864706584,0.43495958,133.08,133.03,8.64368516]
[1768864706879,5.90179869,133.09,133.05,1.12701458]
[1768864707267,5.46636262,133.08,133.05,1.12701458]
[1768864710684,7.95135689,133.08,133.03,14.1104267]
[1768864710980,13.41771951,133.08,133.04,1.12701458]
[1768864711382,13.41771951,133.08,133.05,1.12701458]
[1768864711383,5.46636262,133.08,133.05,1.12701458]
[1768864711682,5.46636262,133.09,133.05,1.12701458]
[1768864712264,5.46636262,133.08,133.05,1.12701458]
[1768864712671,0.43773767,133.09,133.05,1.12701458]
[1768864712870,5.46636262,133.08,133.05,1.12701458]
[1768864713077,5.90410029,133.09,133.05,1.12701458]
[1768864713383,23.97362287,133.1,133.06,1.12701458]
[1768864713562,29.43998549,133.1,133.06,1.12701458]
[1768864714881,12.97998549,133.1,133.06,1.12701458]
[1768864715063,7.95267902,133.1,133.06,1.12701458]
[1768864715264,13.41904164,133.1,133.06,1.12701458]
[1768864715466,0.43905615,133.06,133.02,1.12701458]
[1768864715665,5.90541877,133.07,133.03,1.12701458]
[1768864716290,12.97998549,133.1,133.05,1.12701458]
[1768864716583,12.97998549,133.1,133.06,1.12701458]
[1768864717177,13.41989558,133.1,133.06,1.12701458]
[1768864719272,7.95353296,133.1,133.06,1.12701458]
[1768864721571,7.71263476,133.11,133.07,1.13262555]
[1768864721773,7.71263476,133.11,133.07,6.59898817]
[1768864722186,7.71263476,133.11,133.07,1.13262555]
[1768864722389,7.71263476,133.11,133.07,6.59898817]
[1768864724383,0.2,133.11,133.07,14.11379619]
[1768864724783,7.7127235,133.11,133.07,6.59898817]
[1768864725267,0.2,133.11,133.07,14.11382797]
[1768864725495,0.2,133.11,133.07,6.59898817]
[1768864725699,0.2,133.11,133.08,1.13262555]
[1768864726190,7.71270044,133.11,133.08,1.13262555]
[1768864728996,0.2,133.11,133.08,1.13262555]
[1768864729190,0.2,133.11,133.09,1.13262555]
[1768864731099,0.2,133.11,133.07,7.51481483]
[1768864731400,0.2,133.11,133.08,1.13262555]
[1768864731599,0.2,133.11,133.05,1.13262555]
[1768864731600,0.44572278,133.09,133.05,1.13262555]
[1768864731802,0.44572278,133.1,133.06,1.13262555]
[1768864732298,112.20509234,133.14,133.1,1.13262555]
[1768864732676,120.16214538,133.14,133.1,1.13262555]
[1768864733588,103.70214538,133.14,133.1,1.13262555]
[1768864733996,96.19116798,133.14,133.1,1.13262555]
[1768864734377,95.74509234,133.14,133.11,1.12283404]
[1768864734601,103.25602126,133.14,133.11,1.12283404]
[1768864735986,107.95313199,133.14,133.1,1.12283404]
[1768864737691,11.76112023,133.13,133.1,1.12283404]
[1768864738300,7.51178959,133.13,133.1,1.12283404]
[1768864739603,7.96054608,133.13,133.09,1.12283404]
[1768864739898,7.96054608,133.13,133.09,5.37216468]
[1768864740410,0.2,133.14,133.12,5.37216468]
[1768864740579,0.2,133.14,133.13,4.24933064]
[1768864740775,0.2,133.15,133.09,16.46]
[1768864740978,0.2,133.15,133.13,4.24933064]
[1768864741281,0.2,133.15,133.14,4.24933064]
[1768864741486,7.98794489,133.18,133.14,4.24933064]
[1768864741778,16.66,133.19,133.14,4.24933064]
[1768864741779,24.64771585,133.19,133.15,4.24933064]
[1768864741985,0.2,133.19,133.16,4.24933064]
[1768864742194,0.2,133.19,133.15,7.51024203]
[1768864742195,0.2,133.19,133.17,4.24933064]
[1768864742599,0.2,133.19,133.17,1.12283404]
[1768864743985,0.48031046,133.18,133.13,1.12283404]
[1768864744190,4.7296411,133.18,133.13,1.12283404]
[1768864744406,0.2,133.19,133.16,1.12283404]
[1768864745001,0.2,133.19,133.16,5.37216468]
[1768864745305,12.43807132,133.19,133.15,1.12283404]
[1768864745503,0.68061063,133.19,133.15,1.12283404]
[1768864745705,0.68061063,133.19,133.15,5.37216468]
[1768864745901,8.1888162,133.19,133.15,1.12283404]
[1768864746101,8.1888162,133.19,133.15,5.37216468]
[1768864746299,8.1888162,133.19,133.15,1.12283404]
[1768864746504,12.43814684,133.19,133.15,1.12283404]
[1768864746692,4.73068085,133.18,133.13,1.12283404]
[1768864746887,4.73068085,133.18,133.13,5.37216468]
[1768864747089,0.48135021,133.18,133.13,1.12283404]
[1768864747288,4.24933064,133.17,133.13,1.12283404]
[1768864747595,4.73068085,133.18,133.13,1.12283404]
[1768864748099,12.23969867,133.18,133.14,1.12283404]
[1768864748305,12.44040921,133.19,133.15,1.12283404]
[1768864748816,11.95760522,133.19,133.15,1.12283404]
[1768864749390,0.2,133.19,133.16,5.37216468]
[1768864749710,8.19174013,133.19,133.14,1.12283404]
[1768864749903,7.70822175,133.19,133.15,1.12283404]
[1768864750102,7.70822175,133.19,133.15,5.37216468]
[1768864750307,7.70822175,133.19,133.16,1.12283404]
[1768864751406,11.95755239,133.19,133.16,1.12283404]
[1768864751607,7.70822175,133.19,133.16,1.12283404]
[1768864751801,11.95755239,133.19,133.16,1.12283404]
[1768864752098,0.2,133.19,133.16,1.12283404]
[1768864752709,7.70817266,133.19,133.16,1.12283404]
[1768864754023,0.2,133.19,133.16,1.12283404]
[1768864754222,0.14539045,133.19,133.16,5.37216468]
[1768864754398,0.83235956,133.23,133.18,1.12283404]
[1768864754600,4.24933064,133.22,133.18,1.12283404]
[1768864754906,5.0816902,133.23,133.18,5.37216468]
[1768864755309,8.33833574,133.23,133.18,5.37216468]
[1768864755509,8.33833574,133.23,133.19,1.12283404]
[1768864755718,12.58766638,133.23,133.19,1.12283404]
[1768864755909,11.95530682,133.23,133.19,1.12283404]
[1768864756700,0.63368501,133.21,133.17,5.37216468]
[1768864756902,4.88366697,133.22,133.17,4.24933064]
[1768864757203,4.88366697,133.22,133.18,1.12283404]
[1768864757611,12.39047119,133.22,133.18,1.12283404]
[1768864757920,0.63433633,133.21,133.17,1.12283404]
[1768864758100,4.88366697,133.21,133.17,1.12283404]
[1768864758428,12.39111503,133.22,133.18,1.12283404]
[1768864758614,4.88431081,133.21,133.16,1.12283404]
[1768864758841,4.88431081,133.21,133.17,1.12283404]
[1768864759406,0.63498017,133.21,133.17,5.37216468]
[1768864759612,12.39175148,133.22,133.18,1.12283404]
[1768864760824,4.24933064,133.21,133.18,1.12283404]
[1768864761024,8.14242084,133.22,133.18,1.12283404]
[1768864761223,12.39175148,133.22,133.18,1.12283404]
[1768864763222,4.88730774,133.2,133.16,1.13964319]
[1768864763423,4.88730774,133.2,133.14,4.24933064]
[1768864763617,4.88730774,133.2,133.15,1.13964319]
[1768864764124,4.88730774,133.2,133.15,8.64996906]
[1768864764326,4.24933064,133.19,133.16,1.13964319]
[1768864765027,4.24619221,133.19,133.16,1.13964319]
[1768864765229,12.39207413,133.2,133.16,1.13964319]
[1768864768626,4.24619221,133.2,133.17,1.13964319]